bitfinex/quotes_BTCUSD_20220202
["timestamp","ask_amount","ask_price","bid_price","bid_amount"]
[1643802608559,0.05,38537.0,38534.0,0.00122028]
[1643802608758,0.064874,38538.0,38534.0,0.00122028]
[1643802609360,0.21832874,38537.0,38534.0,0.00122028]
[1643802609563,0.064874,38538.0,38532.0,0.00010332]
[1643802609759,0.064874,38538.0,38534.0,0.00128342]
[1643802610660,0.06480978,38538.0,38534.0,0.00128342]
[1643802610864,0.06480978,38538.0,38534.0,6.315e-05]
[1643802611212,0.3166694,38537.0,38534.0,0.00128351]
[1643802611707,0.2666694,38537.0,38534.0,0.00128351]
[1643802611908,0.2666694,38537.0,38534.0,6.315e-05]
[1643802612107,0.2666694,38537.0,38534.0,0.00128352]
[1643802612508,0.06480978,38538.0,38534.0,0.00128352]
[1643802613108,0.06480978,38538.0,38534.0,6.315e-05]
[1643802613310,0.06480978,38538.0,38534.0,0.00128351]
[1643802613513,0.31700196,38538.0,38534.0,0.00128351]
[1643802614509,0.31700196,38538.0,38534.0,0.00128349]
[1643802616460,0.25219218,38538.0,38534.0,0.00128349]
[1643802616859,0.25219218,38538.0,38534.0,6.315e-05]
[1643802617060,0.1,38539.0,38534.0,0.00128349]
[1643802617261,0.05,38538.0,38534.0,0.00128349]
[1643802617563,0.40909814,38542.0,38534.0,0.06615049]
[1643802617761,0.40909814,38542.0,38535.0,0.15582869]
[1643802617961,0.40804775,38542.0,38535.0,0.00010332]
[1643802618161,0.4090982,38542.0,38536.0,0.28295288]
[1643802618362,0.4090982,38542.0,38536.0,0.34781688]
[1643802618812,0.4090982,38542.0,38536.0,0.3479202]
[1643802619214,0.40804775,38542.0,38536.0,0.3479202]
[1643802619411,0.40909822,38542.0,38536.0,0.3479202]
[1643802620411,0.40804775,38542.0,38536.0,0.3479202]
[1643802620612,0.40909821,38542.0,38536.0,0.3479202]
[1643802621613,0.40804775,38542.0,38536.0,0.3479202]
[1643802621813,0.40909821,38542.0,38536.0,0.3479202]
[1643802622657,0.40909821,38542.0,38536.0,0.06496732]
[1643802622859,0.40804775,38542.0,38536.0,0.00010332]
[1643802623060,0.40909821,38542.0,38535.0,0.00010332]
[1643802623259,0.40909821,38542.0,38536.0,0.064869]
[1643802623460,0.40909821,38542.0,38536.0,0.06497232]
[1643802623863,0.40909821,38542.0,38537.0,0.24552431]
[1643802624062,0.40804775,38542.0,38537.0,0.24552431]
[1643802624361,0.40909821,38542.0,38537.0,0.24552431]
[1643802625160,0.40804775,38542.0,38537.0,0.24552431]
[1643802625359,0.40909823,38542.0,38537.0,0.24552431]
[1643802625760,0.45909823,38542.0,38537.0,0.24552431]
[1643802626309,0.45804775,38542.0,38536.0,0.064869]
[1643802626513,0.52291675,38542.0,38536.0,0.064869]
[1643802626708,0.52396723,38542.0,38536.0,0.064869]
[1643802626911,0.349771,38541.0,38535.0,0.00010332]
[1643802627113,0.1,38541.0,38534.0,0.00128354]
[1643802627310,0.23925765,38538.0,38534.0,0.00128354]
[1643802627510,0.28925765,38538.0,38534.0,6.315e-05]
[1643802627708,0.28925765,38538.0,38534.0,0.00016647]
[1643802627910,0.28925765,38538.0,38534.0,0.00138681]
[1643802628110,0.05,38538.0,38534.0,0.00138681]
[1643802628312,0.114872,38540.0,38534.0,0.00138681]
[1643802628711,0.114872,38540.0,38534.0,0.00016647]
[1643802628912,0.114872,38540.0,38534.0,0.06503747]
[1643802629116,0.31540982,38540.0,38534.0,0.0661545]
[1643802629713,0.25053782,38540.0,38534.0,0.0661545]
[1643802629959,0.25053782,38540.0,38534.0,6.315e-05]
[1643802629960,0.064874,38539.0,38534.0,6.315e-05]
[1643802630261,0.064874,38539.0,38534.0,0.0012835]
[1643802630457,0.25053782,38540.0,38534.0,0.0661545]
[1643802630660,0.064872,38538.0,38534.0,0.0661545]
[1643802630862,0.28878651,38540.0,38534.0,0.0661545]
[1643802631058,0.28878651,38540.0,38534.0,0.06625782]
[1643802631059,0.25053782,38540.0,38534.0,0.06625782]
[1643802631261,0.31540982,38540.0,38534.0,0.06503747]
[1643802631461,0.31540982,38540.0,38534.0,0.06625782]
[1643802632158,0.31540982,38540.0,38534.0,0.28202286]
[1643802632358,0.31540982,38540.0,38534.0,0.28080251]
[1643802632560,0.38028182,38540.0,38534.0,0.06625783]
[1643802632760,0.1,38539.0,38534.0,0.06625783]
[1643802633260,0.1,38539.0,38534.0,0.34473931]
[1643802633460,0.1,38539.0,38535.0,0.064866]
[1643802633716,0.05,38540.0,38535.0,0.064866]
[1643802634112,0.15,38541.0,38535.0,0.06496932]
[1643802634315,0.15,38541.0,38536.0,0.06486585]
[1643802634513,0.40415112,38541.0,38537.0,0.064867]
[1643802634713,0.40404403,38541.0,38537.0,0.064867]
[1643802634913,0.40404403,38541.0,38535.0,0.00010332]
[1643802634914,0.46891403,38541.0,38535.0,0.00010332]
[1643802635113,0.46891403,38541.0,38534.0,0.21566945]
[1643802635715,0.46891403,38541.0,38535.0,0.064869]
[1643802635914,0.46891403,38541.0,38535.0,0.06497232]
[1643802638263,0.064871,38540.0,38535.0,0.06497232]
[1643802638666,0.129742,38540.0,38535.0,0.00010332]
[1643802638864,0.349771,38539.0,38534.0,0.00128352]
[1643802639264,0.214875,38538.0,38534.0,0.00128352]
[1643802639665,0.214875,38538.0,38534.0,6.315e-05]
[1643802639865,0.214875,38538.0,38534.0,0.00128349]
[1643802640265,0.114875,38538.0,38534.0,0.00128349]
[1643802640465,0.23970086,38535.0,38534.0,0.00128349]
[1643802640966,0.28970086,38535.0,38534.0,6.315e-05]
[1643802642015,0.05,38535.0,38534.0,6.315e-05]
[1643802642212,0.22810708,38536.0,38534.0,6.315e-05]
[1643802642612,0.179752,38536.0,38534.0,6.315e-05]
[1643802643615,0.21753127,38535.0,38534.0,6.315e-05]
[1643802644966,0.56730227,38535.0,38534.0,6.315e-05]
[1643802646568,0.66730227,38535.0,38534.0,6.315e-05]
[1643802646775,0.71950227,38535.0,38534.0,6.315e-05]
[1643802647169,0.89555944,38535.0,38534.0,6.315e-05]
[1643802647373,1.01950227,38535.0,38534.0,6.315e-05]
[1643802647570,1.19555944,38535.0,38534.0,6.315e-05]
[1643802647969,1.24555944,38535.0,38534.0,6.315e-05]
[1643802650816,1.29555944,38535.0,38534.0,6.315e-05]
[1643802651216,0.99555944,38535.0,38534.0,6.315e-05]
[1643802651820,0.99555944,38535.0,38523.0,0.22672255]
[1643802651821,0.35135756,38529.0,38523.0,0.22672255]
[1643802652018,0.466867,38528.0,38525.0,0.00010427]
[1643802652222,0.449771,38527.0,38525.0,0.00010427]
[1643802652464,0.349771,38526.0,38524.0,0.00120427]
[1643802652862,0.56247454,38526.0,38524.0,0.00120427]
[1643802653067,0.349771,38525.0,38524.0,0.0011]
[1643802653368,0.34565337,38526.0,38524.0,0.0011]
[1643802653864,0.064894,38526.0,38524.0,0.0011]
[1643802656415,0.349771,38525.0,38524.0,0.0011]
[1643802656612,0.064894,38526.0,38524.0,0.0011]
[1643802661768,0.114894,38526.0,38524.0,0.0011]
[1643802665714,0.05,38525.0,38524.0,0.0011]
[1643802666114,0.064894,38526.0,38524.0,0.0011]
[1643802670166,0.1,38527.0,38524.0,0.0011]
[1643802670365,0.1,38527.0,38524.0,0.00120427]
[1643802670966,0.1,38527.0,38524.0,0.00242482]
[1643802671436,0.1,38527.0,38525.0,0.064883]
[1643802671734,0.05,38527.0,38525.0,0.064883]
[1643802673140,0.09824454,38527.0,38524.0,0.00242481]
[1643802673337,0.06489,38526.0,38524.0,0.00120427]
[1643802673536,0.06489,38526.0,38524.0,0.00232054]
[1643802673736,0.12978053,38526.0,38524.0,0.00232054]
[1643802673935,0.05,38525.0,38524.0,0.00232054]
[1643802674536,0.05,38525.0,38524.0,0.0011]
[1643802675570,0.23840062,38531.0,38529.0,0.20750692]
[1643802675773,0.23840062,38531.0,38524.0,0.7511]
[1643802675774,0.23840062,38531.0,38524.0,0.00120427]
[1643802676769,0.064896,38530.0,38524.0,0.00120427]
[1643802676970,0.129787,38529.0,38526.0,0.21407109]
[1643802677170,0.179787,38529.0,38526.0,0.21407109]
[1643802677771,0.064894,38528.0,38526.0,0.21407109]
[1643802677974,0.064894,38528.0,38526.0,0.21285058]
[1643802678376,0.064894,38528.0,38526.0,0.30982036]
[1643802679919,0.059894,38528.0,38526.0,0.30982036]
[1643802680417,0.059894,38528.0,38526.0,0.09696978]
[1643802680619,0.12478585,38528.0,38526.0,0.09696978]
[1643802684274,0.059894,38528.0,38526.0,0.09696978]
[1643802684673,0.109894,38528.0,38526.0,0.09696978]
[1643802684874,0.059894,38528.0,38526.0,0.09696978]
[1643802686531,0.12478588,38528.0,38526.0,0.09696978]
[1643802686724,0.17478588,38528.0,38526.0,0.09696978]
[1643802688130,0.17478588,38528.0,38525.0,0.00132479]
[1643802688332,0.349771,38527.0,38525.0,0.00132479]
[1643802688529,0.349771,38527.0,38525.0,0.00122052]
[1643802688932,0.349771,38527.0,38524.0,0.00120427]
[1643802689229,0.349771,38527.0,38524.0,0.00234852]
[1643802689441,0.36859805,38526.0,38524.0,0.00234852]
[1643802689631,0.43349344,38526.0,38524.0,0.00224425]
[1643802689830,0.05,38525.0,38524.0,0.00224425]
[1643802690069,0.05,38525.0,38524.0,0.0011]
[1643802693571,0.12978084,38528.0,38524.0,0.0011]
[1643802693821,0.12978084,38528.0,38524.0,0.00120427]
[1643802694221,0.064889,38528.0,38524.0,0.00120427]
[1643802695120,0.12978022,38528.0,38524.0,0.00229608]
[1643802695523,0.349771,38527.0,38524.0,0.00229608]
[1643802695722,0.66563588,38528.0,38524.0,0.00229608]
[1643802696121,0.66563588,38528.0,38524.0,0.00120427]
[1643802696322,0.66563588,38528.0,38524.0,0.00230198]
[1643802696723,0.349771,38527.0,38524.0,0.00230198]
[1643802696923,0.414668,38527.0,38524.0,0.00230198]
[1643802697121,0.064897,38527.0,38524.0,0.00230198]
[1643802697323,0.064897,38527.0,38524.0,0.00120427]
[1643802697572,0.064897,38527.0,38524.0,0.00230199]
[1643802697873,0.064897,38527.0,38524.0,0.31369435]
[1643802698475,0.064897,38527.0,38524.0,0.31259663]
[1643802698672,0.114897,38527.0,38524.0,0.31369435]
[1643802699675,0.114897,38527.0,38524.0,0.00120427]
[1643802699676,0.60608747,38526.0,38524.0,0.00120427]
[1643802699876,0.61115769,38525.0,38524.0,0.00219705]
[1643802700075,0.399771,38525.0,38524.0,0.00219705]
[1643802700876,0.399771,38525.0,38524.0,0.0011]
[1643802703918,0.05,38525.0,38524.0,0.0011]
[1643802704117,0.1148973,38526.0,38524.0,0.0011]
[1643802704517,0.05,38525.0,38524.0,0.0011]
[1643802706195,0.05,38525.0,38524.0,0.00093813]
[1643802706397,0.05,38526.0,38524.0,0.00093813]
[1643802706597,0.164897,38527.0,38524.0,0.00093813]
[1643802706798,0.164897,38527.0,38524.0,0.0010424]
[1643802707000,0.164897,38527.0,38524.0,0.00167329]
[1643802707999,0.164897,38527.0,38524.0,0.0010424]
[1643802708198,0.164897,38527.0,38524.0,0.00230419]
[1643802708408,0.22979339,38527.0,38524.0,0.00230419]
[1643802709024,0.24298503,38526.0,38524.0,0.00230419]
[1643802709222,0.34298503,38526.0,38524.0,0.00093813]
[1643802710125,0.349771,38525.0,38524.0,0.00093813]
[1643802710327,0.449771,38525.0,38524.0,0.00093813]
[1643802710529,0.8229361,38525.0,38524.0,0.00093813]
[1643802711028,0.8229361,38525.0,38524.0,0.00083316]
[1643802711029,0.551971,38525.0,38524.0,0.00083316]
[1643802712128,0.75,38524.0,38519.0,0.03906497]
[1643802712324,0.72457583,38523.0,38519.0,0.03906497]
[1643802712575,0.414684,38522.0,38517.0,0.0011]
[1643802712775,0.27209022,38518.0,38517.0,0.0011]
[1643802712977,0.67406122,38518.0,38517.0,0.0011]
[1643802713177,0.72406122,38518.0,38517.0,0.0011]
[1643802713377,0.82406122,38518.0,38517.0,0.0011]
[1643802716830,0.0522,38518.0,38517.0,0.0011]
[1643802717028,0.129825,38523.0,38517.0,0.0011]
[1643802717029,0.064902,38523.0,38517.0,0.0011]
[1643802717228,0.349771,38522.0,38517.0,0.0011]
[1643802717431,0.1201,38526.0,38517.0,0.0011]
[1643802717628,0.1201,38526.0,38519.0,0.05]
[1643802717828,0.24495026,38524.0,38520.0,0.00125631]
[1643802718031,0.349771,38523.0,38520.0,0.00125631]
[1643802718229,0.514673,38523.0,38520.0,0.00125631]
[1643802718429,0.349771,38522.0,38520.0,0.00125631]
[1643802718829,0.349771,38522.0,38519.0,0.05]
[1643802719028,0.349771,38522.0,38519.0,0.05125633]
[1643802720075,0.349771,38522.0,38519.0,0.25471828]
[1643802720272,0.349771,38522.0,38519.0,0.25597463]
[1643802720871,0.349771,38522.0,38521.0,0.07934097]
[1643802725031,0.1,38523.0,38521.0,0.32724212]
[1643802725234,0.05,38523.0,38521.0,0.07934097]
[1643802725429,0.05,38523.0,38521.0,0.38084532]
[1643802725931,0.05,38523.0,38522.0,0.23725663]
[1643802729077,0.05,38523.0,38521.0,0.38208655]
[1643802729275,0.05,38523.0,38521.0,0.38198231]
[1643802729677,0.05,38523.0,38521.0,0.38084532]
[1643802731623,0.05,38523.0,38521.0,0.30150435]
[1643802732027,0.1149043,38523.0,38521.0,0.30150435]
[1643802732622,0.05,38523.0,38521.0,0.30150435]
[1643802732826,0.179804,38523.0,38520.0,0.00123345]
[1643802733022,0.174804,38523.0,38520.0,0.00123345]
[1643802733224,0.05,38522.0,38520.0,0.00010424]
[1643802733427,0.05,38522.0,38520.0,0.00113098]
[1643802734424,0.28896642,38522.0,38520.0,0.00113098]
[1643802734627,0.28896642,38522.0,38519.0,0.05123523]
[1643802734824,0.28896642,38522.0,38519.0,0.05113099]
[1643802735772,0.28896642,38522.0,38519.0,0.05]
[1643802735972,0.28896642,38522.0,38519.0,0.05113101]
[1643802736475,0.47959,38521.0,38519.0,0.05113101]
[1643802736678,0.349771,38520.0,38519.0,0.05113101]
[1643802736874,0.449771,38520.0,38519.0,0.00113101]
[1643802737175,0.87827804,38520.0,38518.0,0.00123487]
[1643802737373,0.349771,38519.0,38518.0,0.00113063]
[1643802738176,0.349771,38519.0,38517.0,0.00120424]
[1643802738377,0.34945854,38519.0,38517.0,0.00223067]
[1643802739431,0.34945854,38519.0,38517.0,0.0011]
[1643802739836,0.28720427,38518.0,38517.0,0.0011]
[1643802740036,0.73697527,38518.0,38517.0,0.0011]
[1643802740233,0.78697527,38518.0,38517.0,0.0011]
[1643802743395,0.75,38517.0,38515.0,0.0011]
[1643802743695,0.94477526,38517.0,38516.0,0.00010425]
[1643802743891,1.39681326,38517.0,38516.0,0.00010425]
[1643802744089,1.39681326,38517.0,38515.0,0.0011]
[1643802744289,0.349838,38516.0,38515.0,0.0011]
[1643802744490,0.49595862,38516.0,38515.0,0.0011]
[1643802744688,0.57828572,38516.0,38515.0,0.0011]
[1643802745089,0.402038,38516.0,38515.0,0.0011]
[1643802745689,0.84825569,38516.0,38515.0,0.0011]
[1643802746336,0.67200899,38516.0,38515.0,0.0011]
[1643802747636,0.84825678,38516.0,38515.0,0.0011]
[1643802748639,0.82996845,38516.0,38515.0,0.0011]
[1643802749438,1.0898326,38516.0,38515.0,0.0011]
[1643802750078,1.0895826,38516.0,38515.0,0.0011]
[1643802750677,0.82971845,38516.0,38515.0,0.0011]
[1643802751082,0.52583579,38516.0,38515.0,0.0011]
[1643802751285,0.349588,38516.0,38515.0,0.0011]
[1643802751680,0.349838,38518.0,38515.0,0.0011]
[1643802751981,0.349838,38518.0,38515.0,0.00120425]
[1643802752483,0.399838,38518.0,38515.0,0.00120425]
[1643802752682,0.349846,38517.0,38515.0,0.00120425]
[1643802752884,0.349846,38517.0,38515.0,0.0011]
[1643802753284,0.1215,38519.0,38515.0,0.0011]
[1643802753489,0.064911,38521.0,38515.0,0.0011]
[1643802753734,0.5417123,38523.0,38515.0,0.00120425]
[1643802753932,0.00129075,38524.0,38521.0,0.20181215]
[1643802754126,0.00129075,38524.0,38522.0,0.24042529]
[1643802754325,0.00129075,38524.0,38521.0,0.20181215]
[1643802754526,0.00129075,38524.0,38522.0,0.23047821]
[1643802754926,0.349846,38523.0,38522.0,0.23047821]
[1643802755226,0.35113693,38525.0,38520.0,0.09613143]
[1643802755426,0.349846,38524.0,38518.0,0.25207004]
[1643802756227,0.00129089,38524.0,38518.0,0.47132422]
[1643802756433,0.25362784,38520.0,38518.0,0.25207004]
[1643802756828,0.30362784,38520.0,38518.0,0.25207004]
[1643802757029,0.30362784,38520.0,38518.0,0.2288986]
[1643802757227,0.30362784,38520.0,38517.0,0.05]
[1643802757471,0.5594262,38520.0,38517.0,0.05]
[1643802757873,0.30362784,38520.0,38517.0,0.05]
[1643802758472,0.30362784,38520.0,38517.0,0.05010412]
[1643802759076,0.25362784,38520.0,38517.0,0.05010412]
[1643802759674,0.25362784,38520.0,38518.0,0.22887242]
[1643802760077,0.31493542,38523.0,38518.0,0.22816131]
[1643802760276,0.31493542,38523.0,38518.0,0.22629348]
[1643802760480,0.31493542,38523.0,38518.0,0.00010412]
[1643802760676,0.55841753,38523.0,38518.0,0.00010412]
[1643802761075,0.55841753,38523.0,38517.0,0.05010412]
[1643802761325,0.25421125,38523.0,38517.0,0.05010412]
[1643802761527,0.25421125,38523.0,38517.0,0.05]
[1643802761924,0.25421125,38523.0,38518.0,0.10214752]
[1643802762128,0.61944861,38523.0,38518.0,0.10225164]
[1643802762326,0.25421125,38523.0,38521.0,0.26090018]
[1643802762526,0.349846,38522.0,38521.0,0.26090018]
[1643802763125,0.349846,38522.0,38519.0,0.00010412]
[1643802763327,0.349846,38522.0,38518.0,0.10225164]
[1643802763527,0.25421125,38523.0,38518.0,0.10225164]
[1643802764528,0.41475342,38522.0,38518.0,0.00010412]
[1643802764727,0.349846,38521.0,38517.0,0.05010412]
[1643802764987,0.06490742,38522.0,38517.0,0.05010412]
[1643802765386,0.06490742,38522.0,38519.0,0.2245458]
[1643802765788,0.349846,38521.0,38519.0,0.2245458]
[1643802765988,0.25421125,38523.0,38519.0,0.2245458]
[1643802766189,0.30731235,38524.0,38519.0,0.2245458]
[1643802766392,0.17750317,38524.0,38519.0,0.2245458]
[1643802766587,0.00129087,38524.0,38519.0,0.22464992]
[1643802766993,0.31865356,38525.0,38519.0,0.22464992]
[1643802767190,0.00129091,38524.0,38519.0,0.22464992]
[1643802768734,0.06619378,38524.0,38519.0,0.22464992]
[1643802768925,0.349846,38523.0,38519.0,0.22464992]
[1643802769126,0.349846,38523.0,38519.0,0.00010412]
[1643802769429,0.349846,38523.0,38518.0,0.10229583]
[1643802769631,0.399846,38523.0,38518.0,0.10229583]
[1643802769827,0.349846,38522.0,38518.0,0.10229583]
[1643802770227,0.31303377,38520.0,38518.0,0.10229583]
[1643802770428,0.31303377,38520.0,38518.0,0.00010412]
[1643802770629,0.31303377,38520.0,38517.0,0.27889213]
[1643802770831,0.05,38523.0,38517.0,0.27889213]
[1643802771029,0.00129082,38524.0,38517.0,0.27889213]
[1643802771230,0.41475289,38523.0,38517.0,0.27889213]
[1643802771431,0.00129082,38524.0,38517.0,0.27889213]
[1643802771632,0.31865356,38525.0,38520.0,0.07910035]
[1643802771832,0.65333042,38524.0,38520.0,0.07910035]
[1643802772033,0.00129087,38524.0,38520.0,0.07900768]
[1643802772475,0.06619362,38524.0,38520.0,0.07900768]
[1643802772877,0.06490275,38524.0,38520.0,0.07900768]
[1643802773074,0.06619367,38524.0,38520.0,0.07900768]
[1643802773475,0.349846,38523.0,38520.0,0.07900768]
[1643802774575,0.06619366,38524.0,38520.0,0.07900768]
[1643802775377,0.06490275,38524.0,38520.0,0.07900768]
[1643802775579,0.06619367,38524.0,38520.0,0.07900768]
[1643802776429,0.06490275,38524.0,38520.0,0.07900768]
[1643802776628,0.06619367,38524.0,38519.0,0.00010412]
[1643802776830,0.13109967,38524.0,38519.0,0.00010412]
[1643802777030,0.0649067,38523.0,38517.0,0.27878801]
[1643802777631,0.0649067,38523.0,38518.0,0.1008265]
[1643802777832,0.114906,38524.0,38518.0,0.10093062]
[1643802778030,0.11619685,38524.0,38518.0,0.10093062]
[1643802778232,0.13109995,38524.0,38518.0,0.10093062]
[1643802778831,0.1298091,38524.0,38518.0,0.10093062]
[1643802779030,0.13109999,38524.0,38518.0,0.10093062]
[1643802780077,0.1298091,38524.0,38518.0,0.10093062]
[1643802780277,0.06619399,38524.0,38518.0,0.10093062]
[1643802781274,0.0649031,38524.0,38518.0,0.10093062]
[1643802781475,0.06619399,38524.0,38518.0,0.10093062]
[1643802781674,0.349846,38523.0,38518.0,0.10093062]
[1643802781874,0.11619399,38524.0,38518.0,0.10093062]
[1643802782276,0.12981192,38523.0,38518.0,0.10093062]
[1643802782876,0.05,38522.0,38518.0,0.10093062]
[1643802783278,0.05,38521.0,38518.0,0.10093062]
[1643802783733,0.05,38522.0,38518.0,0.10093062]
[1643802784527,0.04968751,38522.0,38518.0,0.10093062]
[1643802785529,0.11490592,38523.0,38518.0,0.10093062]
[1643802785730,0.06490592,38523.0,38518.0,0.10093062]
[1643802786930,0.06490592,38523.0,38518.0,0.02893062]
[1643802789978,0.12981092,38523.0,38518.0,0.02893062]
[1643802790981,0.064905,38521.0,38518.0,0.02893062]
[1643802791233,0.24471346,38521.0,38518.0,0.02893062]
[1643802791426,0.05,38520.0,38518.0,0.02893062]
[1643802793137,0.1,38520.0,38518.0,0.02893062]
[1643802793331,0.05,38520.0,38518.0,0.02893062]
[1643802793729,0.05,38520.0,38518.0,0.27108969]
[1643802793932,0.19471346,38521.0,38518.0,0.02893062]
[1643802794333,0.06490446,38521.0,38519.0,0.24668414]
[1643802794534,0.129799,38528.0,38520.0,0.349846]
[1643802794535,0.12979173,38527.0,38520.0,0.349846]
[1643802794735,0.00129084,38524.0,38521.0,0.27033186]
[1643802794977,0.00129084,38524.0,38520.0,0.0522]
[1643802795181,0.00129084,38524.0,38521.0,0.349846]
[1643802795382,0.00129084,38524.0,38522.0,0.3080261]
[1643802795580,0.00129084,38524.0,38522.0,0.3729141]
[1643802795785,0.06488976,38527.0,38522.0,0.064888]
[1643802795982,0.00129093,38525.0,38522.0,0.064888]
[1643802796381,0.00129093,38525.0,38523.0,0.26834338]
[1643802796784,0.00129093,38525.0,38524.0,0.3430687]
[1643802796985,0.06488976,38527.0,38524.0,0.3430687]
[1643802797185,0.00129093,38526.0,38524.0,0.3430687]
[1643802797386,0.00129093,38526.0,38525.0,0.23443646]
[1643802798185,0.06488976,38527.0,38525.0,0.23443646]
[1643802798388,0.06618069,38527.0,38525.0,0.23443646]
[1643802798586,0.06618069,38527.0,38524.0,0.10045358]
[1643802798832,0.24731966,38526.0,38524.0,0.10045358]
[1643802799029,0.29731966,38526.0,38524.0,0.10045358]
[1643802799330,0.34731966,38526.0,38524.0,0.10045358]
[1643802799529,0.34731966,38526.0,38525.0,0.22535161]
[1643802799831,0.34731966,38526.0,38524.0,0.10045358]
[1643802800527,0.34731966,38526.0,38523.0,0.49965084]
[1643802800732,0.34731966,38526.0,38523.0,0.49855643]
[1643802801131,0.34731966,38526.0,38523.0,0.26834338]
[1643802801430,0.34731966,38526.0,38522.0,0.05]
[1643802801629,0.06489608,38525.0,38523.0,0.23132466]
[1643802802030,0.06489608,38525.0,38523.0,0.22829931]
[1643802802227,0.06489608,38525.0,38522.0,0.05]
[1643802802484,0.06489608,38525.0,38523.0,0.23924976]
[1643802803688,0.32379832,38525.0,38522.0,0.05]
[1643802803890,0.67178167,38524.0,38522.0,0.05]
[1643802804189,0.6135798,38523.0,38522.0,0.05]
[1643802804388,0.399846,38523.0,38522.0,0.05]
[1643802806827,0.064905,38521.0,38517.0,0.00010412]
[1643802807030,0.129811,38521.0,38516.0,0.34938144]
[1643802807232,0.05,38520.0,38516.0,0.34938144]
[1643802807432,0.28531245,38520.0,38516.0,0.34938144]
[1643802809432,0.06490395,38519.0,38516.0,0.34938144]
[1643802810782,0.06478725,38519.0,38516.0,0.34938144]
[1643802811384,0.12969225,38519.0,38516.0,0.34938144]
[1643802812185,0.06478725,38519.0,38516.0,0.34938144]
[1643802812688,0.064905,38519.0,38517.0,0.349846]
[1643802812887,0.05,38520.0,38518.0,0.18755041]
[1643802813185,0.05,38520.0,38519.0,0.349846]
[1643802813585,0.114897,38520.0,38519.0,0.54182985]
[1643802813836,0.064897,38520.0,38519.0,0.78251923]
[1643802814434,0.064897,38520.0,38519.0,0.83471923]
[1643802817035,0.00129084,38524.0,38519.0,0.83471923]
[1643802817036,0.06489,38523.0,38519.0,0.83471923]
[1643802817232,0.06489,38523.0,38520.0,0.414735]
[1643802817483,0.06489,38523.0,38521.0,0.6236541]
[1643802817684,0.06489,38523.0,38522.0,0.61218671]
[1643802819101,0.06489,38523.0,38522.0,0.26234071]
[1643802822432,0.06489,38523.0,38520.0,0.57455805]
[1643802822631,0.129785,38523.0,38520.0,0.57455805]
[1643802822832,0.179785,38523.0,38520.0,0.57455805]
[1643802823032,0.179785,38523.0,38520.0,0.29893225]
[1643802823240,0.24467942,38523.0,38520.0,0.29893225]
[1643802823433,0.24467942,38523.0,38520.0,0.064889]
[1643802823734,0.19467942,38523.0,38518.0,0.064897]
[1643802823935,0.19467942,38523.0,38518.0,0.00010412]
[1643802824236,0.05,38519.0,38518.0,0.00010412]
[1643802824537,0.05,38519.0,38515.0,0.2453473]
[1643802824734,0.05,38519.0,38516.0,0.349846]
[1643802824991,0.37479635,38520.0,38516.0,0.34995012]
[1643802825191,0.37479635,38520.0,38517.0,0.57671965]
[1643802825391,0.37479635,38520.0,38517.0,0.0649]
[1643802825392,0.129806,38519.0,38517.0,0.0649]
[1643802825591,0.129806,38519.0,38518.0,0.349846]
[1643802826491,0.129806,38519.0,38518.0,0.57868251]
[1643802827292,0.129806,38519.0,38518.0,0.349846]
[1643802827689,0.179806,38519.0,38518.0,0.349846]
[1643802828492,0.179806,38519.0,38518.0,0.57855944]
[1643802828735,0.129806,38519.0,38518.0,0.349846]
[1643802828931,0.129806,38519.0,38518.0,0.57933941]
[1643802829332,0.129806,38519.0,38518.0,0.58277507]
[1643802830435,0.129806,38519.0,38518.0,0.349846]
[1643802830733,0.129806,38519.0,38518.0,0.5761418]
[1643802830938,0.129806,38519.0,38518.0,0.349846]
[1643802832788,0.179806,38519.0,38518.0,0.349846]
[1643802833587,0.114903,38519.0,38518.0,0.349846]
[1643802834793,0.064903,38519.0,38518.0,0.349846]
[1643802834993,0.064903,38519.0,38518.0,0.57635208]
[1643802835389,0.06481213,38519.0,38518.0,0.57635208]
[1643802837034,0.06481213,38519.0,38518.0,0.349846]
[1643802837734,0.11481213,38519.0,38518.0,0.349846]
[1643802838236,0.06481213,38519.0,38518.0,0.57991065]
[1643802841783,0.06481213,38519.0,38518.0,0.23006465]
[1643802842984,0.06481213,38519.0,38517.0,0.06500412]
[1643802843186,0.06481213,38519.0,38517.0,0.0649]
[1643802843488,0.06481213,38519.0,38516.0,0.00010412]
[1643802843733,0.06481213,38519.0,38515.0,0.06610712]
[1643802844232,0.11481213,38519.0,38515.0,0.06610712]
[1643802844434,0.17971366,38519.0,38515.0,0.06610712]
[1643802845033,0.064903,38518.0,38515.0,0.06610712]
[1643802845236,0.114903,38518.0,38515.0,0.06610712]
[1643802847339,0.114903,38518.0,38515.0,0.06601842]
[1643802847584,0.114903,38518.0,38516.0,0.22542885]
[1643802848388,0.114903,38518.0,38515.0,0.06601842]
[1643802848389,0.0649034,38517.0,38515.0,0.06601842]
[1643802848590,0.0649034,38517.0,38515.0,0.0010113]
[1643802848989,0.114903,38518.0,38515.0,0.22934232]
[1643802849188,0.114903,38518.0,38515.0,0.22944644]
[1643802849388,0.114903,38518.0,38516.0,0.22563154]
[1643802851240,0.114903,38518.0,38515.0,0.06601742]
[1643802851435,0.114903,38518.0,38515.0,0.29753926]
[1643802852032,0.114903,38518.0,38515.0,0.06601742]
[1643802852834,0.12971318,38519.0,38515.0,0.06601742]
[1643802853037,0.17971318,38519.0,38515.0,0.06601742]
[1643802854535,0.17971318,38519.0,38515.0,0.29480013]
[1643802854734,0.17971318,38519.0,38515.0,0.06601742]
[1643802855382,0.17971318,38519.0,38515.0,0.29473854]
[1643802855586,0.17971318,38519.0,38515.0,0.06601742]
[1643802857186,0.17971318,38519.0,38515.0,0.29755046]
[1643802857988,0.11481213,38519.0,38515.0,0.29755046]
[1643802858387,0.11481213,38519.0,38515.0,0.06601742]
[1643802858588,0.11481213,38519.0,38515.0,0.29263148]
[1643802859134,0.17971248,38519.0,38515.0,0.2946419]
[1643802859335,0.17971248,38519.0,38515.0,0.29719085]
[1643802860032,0.12971248,38519.0,38515.0,0.29719085]
[1643802860236,0.06481213,38519.0,38515.0,0.29719085]
[1643802861533,0.06481213,38519.0,38518.0,0.08036491]
[1643802861733,0.06481213,38519.0,38518.0,0.30652381]
[1643802861934,0.06481213,38519.0,38518.0,0.30133494]
[1643802862983,0.064895,38520.0,38518.0,0.30133494]
[1643802863186,0.064895,38520.0,38519.0,0.23447151]
[1643802863387,0.064895,38520.0,38518.0,0.14007204]
[1643802863784,0.064895,38520.0,38518.0,0.064896]